fUST/lending_fUST_20251011
["ID","MTS","AMOUNT","RATE_DAILY","PERIOD"]
[390795998,1760154631451,10000.0,0.00024,30]
[390796021,1760154632390,-2462.94954419,0.00018727,10]
[390796023,1760154632399,-500.0,0.000192,2]
[390796025,1760154632412,-150.0,0.000193,2]
[390796026,1760154632421,-172.5,0.000199,2]
[390796028,1760154632431,-150.0,0.00019966,2]
[390796031,1760154632441,-160.0,0.00020036,2]
[390796033,1760154632450,-195.0,0.000205,2]
[390796035,1760154632459,-1200.0,0.0002055,2]
[390796036,1760154632470,-300.0,0.00020551,2]
[390796038,1760154632479,-278.0,0.00020551,2]
[390796041,1760154632489,-300.0,0.00020551,2]
[390796043,1760154632498,-300.0,0.00020551,2]
[390796045,1760154632507,-300.0,0.00020551,2]
[390796046,1760154632516,-1200.0,0.00020552,2]
[390796048,1760154632525,-50000.0,0.00020552,2]
[390796051,1760154632534,-4951.3772384,0.00020554,2]
[390796053,1760154632543,-151.0,0.00021077,2]
[390796056,1760154632553,-151.0,0.00021077,2]
[390796059,1760154632563,-151.0,0.00021077,2]
[390796062,1760154632572,-151.0,0.00021077,2]
[390796065,1760154632581,-151.0,0.00021077,2]
[390796068,1760154632589,-151.0,0.00021077,2]
[390796071,1760154632598,-151.0,0.00021077,2]
[390796073,1760154632607,-151.0,0.00021077,2]
[390796075,1760154632616,-1029.17778671,0.00021089,2]
[390796114,1760154638665,-4284.62582307,0.00021089,2]
[390796115,1760154638720,-435.43175102,0.00021089,2]
[390796116,1760154638731,-217.5,0.000211,2]
[390796117,1760154638740,-240.0,0.000217,2]
[390796118,1760154638750,-150.0,0.00021781,2]
[390796119,1760154638760,-175.0,0.00022,2]
[390796120,1760154638769,-262.5,0.000223,2]
[390796121,1760154638778,-301.0,0.00022365,2]
[390796122,1760154638787,-420.0,0.00022365,2]
[390796123,1760154638797,-420.0,0.00022365,2]
[390796124,1760154639007,-1680.0,0.00022366,2]
[390796125,1760154639016,-285.97097518,0.000224,2]
[390796126,1760154639026,-160.0,0.00022441,2]
[390796127,1760154639036,-526.04849136,0.00022441,2]
[390796128,1760154639046,-298.08050243,0.00022441,2]
[390796129,1760154639056,-417.15472785,0.00022441,2]
[390796130,1760154639067,-1680.0,0.00022471,2]
[390796131,1760154639077,-500.0,0.00022759,2]
[390796132,1760154639087,-152.27128138,0.00022788,2]
[390796133,1760154639096,-300.0,0.00022888,20]
[390796134,1760154639108,-300.0,0.00022888,20]
[390796135,1760154639117,-300.0,0.00022888,20]
[390796136,1760154639127,-300.0,0.00022888,20]
[390796137,1760154639137,-300.0,0.00022888,20]
[390796138,1760154639147,-300.0,0.00022888,20]
[390796139,1760154639157,-300.0,0.00022888,20]
[390796140,1760154639166,-300.0,0.00022888,20]
[390796141,1760154639176,-300.0,0.00022888,20]
[390796142,1760154639186,-300.0,0.00022888,20]
[390796143,1760154639196,-300.0,0.00022888,20]
[390796144,1760154639205,-300.0,0.00022888,20]
[390796145,1760154639215,-300.0,0.00022888,20]
[390796146,1760154639225,-300.0,0.00022888,20]
[390796147,1760154639234,-300.0,0.00022888,20]
[390796148,1760154639245,-270.0,0.000229,2]
[390796149,1760154639255,-151.0,0.00022959,2]
[390796150,1760154639264,-151.0,0.00022959,2]
[390796151,1760154639274,-151.0,0.00022959,2]
[390796152,1760154639283,-151.0,0.00022959,2]
[390796153,1760154639299,-151.0,0.00022959,2]
[390796154,1760154639310,-151.58438074,0.00022959,2]
[390796155,1760154639320,-155.72489478,0.00022959,2]
[390796156,1760154639332,-500.0,0.00022959,2]
[390796157,1760154639342,-500.0,0.00022959,2]
[390796158,1760154639352,-207.07251211,0.00022959,2]
[390796159,1760154639362,-151.0,0.00022959,2]
[390796160,1760154639372,-151.0,0.00022959,2]
[390796161,1760154639382,-151.0,0.00022959,2]
[390796162,1760154639392,-151.18307593,0.00022959,2]
[390796163,1760154639402,-500.0,0.00022959,2]
[390796164,1760154639415,-151.27753398,0.00022959,2]
[390796165,1760154639424,-500.0,0.00022959,2]
[390796166,1760154639434,-500.0,0.00022959,2]
[390796167,1760154639443,-421.95477025,0.00022959,2]
[390796168,1760154639453,-160.0,0.00023,2]
[390796169,1760154639462,-151.0,0.00023014,2]
[390796170,1760154639472,-151.0,0.00023014,2]
[390796171,1760154639481,-151.0,0.00023014,2]
[390796172,1760154639490,-151.44438507,0.00023014,2]
[390796173,1760154639499,-151.0,0.00023014,2]
[390796174,1760154639509,-500.0,0.00023014,2]
[390796175,1760154639519,-500.0,0.00023014,2]
[390796176,1760154639528,-151.0,0.00023014,2]
[390796177,1760154639539,-151.0,0.00023014,2]
[390796178,1760154639548,-151.0,0.00023014,2]
[390796179,1760154639558,-501.42221009,0.00023014,2]
[390796180,1760154639567,-500.0,0.00023014,2]
[390796181,1760154639576,-500.0,0.00023014,2]
[390796182,1760154639586,-500.44276864,0.00023019,2]
[390796183,1760154639595,-151.0,0.00023069,2]
[390796184,1760154639606,-151.0,0.00023069,2]
[390796185,1760154639615,-151.41768723,0.00023069,2]
[390796186,1760154639624,-151.0,0.00023069,2]
[390796187,1760154639633,-500.0,0.00023069,2]
[390796188,1760154639643,-500.0,0.00023069,2]
[390796189,1760154639652,-199.53637581,0.00023069,2]
[390796190,1760154639663,-151.0,0.00023069,2]
[390796191,1760154639672,-284.32814637,0.00023069,2]
[390796192,1760154639681,-153.47694727,0.00023069,2]
[390796193,1760154639690,-314.12517068,0.00023069,2]
[390796194,1760154639699,-246.41484151,0.00023123,2]
[390796195,1760154639708,-198.805713,0.00023123,2]
[390796196,1760154639718,-200.1955391,0.00023123,2]
[390796197,1760154639727,-500.0,0.00023123,2]
[390796198,1760154639736,-500.0,0.00023123,2]
[390796199,1760154639745,-198.87405269,0.00023123,2]
[390796200,1760154639755,-500.0,0.00023178,2]
[390796201,1760154639764,-500.0,0.00023178,2]
[390796202,1760154639773,-500.0,0.00023233,2]
[390796203,1760154639782,-500.0,0.00023233,2]
[390796204,1760154639791,-500.0,0.00023283,2]
[390796205,1760154639801,-500.0,0.00023288,2]
[390796206,1760154639810,-500.0,0.00023288,2]
[390796207,1760154639819,-11075.88,0.00023332,10]
[390796208,1760154639828,-500.0,0.00023343,2]
[390796209,1760154639839,-500.0,0.00023343,2]
[390796210,1760154639848,-13291.05,0.00023377,10]
[390796211,1760154639857,-15949.26,0.00023387,10]
[390796213,1760154639867,-500.0,0.00023397,2]
[390796215,1760154639877,-500.0,0.00023397,2]
[390796217,1760154639887,-500.55905955,0.00023443,2]
[390796218,1760154639898,-500.0,0.00023452,2]
[390796219,1760154639911,-500.0,0.00023452,2]
[390796220,1760154639921,-500.0,0.00023465,2]
[390796221,1760154639931,-500.0,0.00023465,2]
[390796223,1760154639943,-151.0,0.00023465,2]
[390796225,1760154639953,-151.0,0.00023465,2]
[390796226,1760154639963,-151.0,0.00023465,2]
[390796227,1760154639973,-151.08841618,0.00023465,2]
[390796228,1760154639982,-151.0,0.00023465,2]
[390796229,1760154639992,-500.0,0.00023507,2]
[390796230,1760154640002,-500.0,0.00023507,2]
[390796231,1760154640012,-230.3204563,0.00023508,2]
[390796232,1760154640021,-500.0,0.0002352,2]
[390796233,1760154640031,-500.0,0.0002352,2]
[390796234,1760154640040,-151.35326993,0.0002352,2]
[390796235,1760154640050,-151.0,0.0002352,2]
[390796236,1760154640059,-500.0,0.00023562,2]
[390796237,1760154640069,-500.0,0.00023562,2]
[390796238,1760154640078,-151.0,0.00023572,2]
[390796239,1760154640087,-349.79909831,0.00023575,2]
[390796240,1760154640097,-303.96144327,0.00023575,2]
[390796242,1760154640107,-198.76858008,0.00023575,2]
[390796243,1760154640116,-150.0,0.00023597,2]
[390796244,1760154640125,-500.0,0.00023617,2]
[390796245,1760154640134,-340.42581412,0.00023617,2]
[390796246,1760154640143,-151.0,0.00023627,2]
[390796247,1760154640152,-500.0,0.00023671,2]
[390796248,1760154640166,-198.88999291,0.00023682,2]
[390796249,1760154640175,-500.0,0.00023726,2]
[390796250,1760154640184,-500.0,0.00023781,2]
[390796251,1760154640193,-500.0,0.00023836,2]
[390796252,1760154640202,-151.36574804,0.00023891,2]
[390796253,1760154640212,-501.57050015,0.00023957,2]
[390796254,1760154640222,-202.32,0.00024195,2]
[390796255,1760154640231,-587.0,0.00024339,2]
[390796256,1760154640240,-182.0,0.00024339,2]
[390796257,1760154640250,-729.0,0.0002434,2]
[390796258,1760154640259,-168.479,0.0002437,6]
[390796259,1760154640268,-1780.0,0.00024571,2]
[390796260,1760154640277,-600.0,0.00024977,20]
[390796261,1760154640287,-250.0,0.00024994,2]
[390796262,1760154640297,-13123.6291206,0.00025057,2]
[390796263,1760154640312,-1000.0,0.00025385,30]
[390796264,1760154640321,-150.0,0.00025412,2]
[390796265,1760154640331,-6564.71,0.00026027,2]
[390796266,1760154640340,-160.0,0.00026159,3]
[390796267,1760154640350,-152.27128138,0.00026204,2]
[390796268,1760154640360,-151.6128558,0.00026391,2]
[390796269,1760154640370,-151.0,0.00026391,2]
[390796270,1760154640382,-151.0,0.00026391,2]
[390796271,1760154640391,-215.41218431,0.00026446,2]
[390796272,1760154640400,-221.61764642,0.00026446,2]
[390796273,1760154640413,-823.0,0.00026488,2]
[390796274,1760154640423,-507.76597679,0.00026678,2]
[390796275,1760154640432,-13123.6291206,0.0002693,2]
[390796276,1760154640442,-883.11,0.0002697,3]
[390796277,1760154640451,-294.37,0.0002698,3]
[390796278,1760154640460,-6564.71,0.00027123,4]
[390796279,1760154640469,-150.0,0.00027227,2]
[390796280,1760154640478,-13123.6291206,0.0002728,2]
[390796281,1760154640488,-2824.40094793,0.00027289,2]
[390796282,1760154640497,-2824.40094791,0.00027291,2]
[390796283,1760154640507,-2824.40094791,0.00027293,2]
[390796284,1760154640517,-2824.40094791,0.00027295,2]
[390796285,1760154640527,-2824.40094791,0.00027297,2]
[390796286,1760154640536,-500.0,0.00027373,2]
[390796287,1760154640546,-579.37251432,0.00027373,2]
[390796288,1760154640555,-500.0,0.00027373,2]
[390796289,1760154640564,-303.82076833,0.00027373,2]
[390796290,1760154640574,-501.00883299,0.00027373,2]
[390796291,1760154640583,-500.59476898,0.00027373,2]
[390796292,1760154640592,-500.75953278,0.00027373,2]
[390796293,1760154640602,-500.69755448,0.00027373,2]
[390796294,1760154640611,-500.3923014,0.00027373,2]
[390796295,1760154640620,-500.0,0.00027376,2]
[390796296,1760154640631,-500.0,0.00027376,2]
[390796297,1760154640640,-500.0,0.00027376,2]
[390796298,1760154640650,-500.0,0.00027376,2]
[390796299,1760154640662,-500.0,0.00027376,2]
[390796300,1760154640673,-500.0,0.00027376,2]
[390796301,1760154640683,-500.0,0.00027376,2]
[390796302,1760154640693,-300.01429881,0.00027376,2]
[390796303,1760154640703,-500.0,0.00027376,2]
[390796304,1760154640712,-373.93330744,0.00027376,2]
[390796305,1760154640720,-500.0,0.00027376,2]
[390796306,1760154640729,-500.0,0.00027376,2]
[390796307,1760154640738,-500.0,0.00027376,2]
[390796308,1760154640747,-500.0,0.00027376,2]
[390796309,1760154640756,-500.0,0.00027376,2]
[390796310,1760154640765,-500.0,0.00027376,2]
[390796311,1760154640774,-500.0,0.00027376,2]
[390796312,1760154640783,-500.0,0.00027376,2]
[390796313,1760154640792,-500.0,0.00027376,2]
[390796314,1760154640802,-500.0,0.00027376,2]
[390796315,1760154640811,-162.26049526,0.00027376,2]
[390796316,1760154640820,-500.0,0.00027376,2]
[390796317,1760154640830,-500.0,0.00027376,2]
[390796318,1760154640839,-500.0,0.00027376,2]
[390796319,1760154640848,-500.0,0.00027376,2]
[390796320,1760154640858,-65618.1456032,0.00027377,2]
[390796321,1760154640868,-510.61,0.00027387,5]
[390796322,1760154640877,-12241.92841255,0.00027387,2]
[390796360,1760154646543,-313.18516897,0.00027296,2]
[390796361,1760154646555,-28085.34663103,0.00027387,2]
[390796363,1760154684615,434.068556,0.000249,120]
[390796419,1760155415215,1789.46403696,0.00025,120]
[390796420,1760155475100,680.0,0.00025,120]
[390796421,1760155712972,240.767898,0.00013699,2]
[390796448,1760155832614,-150.0,0.00019987,2]
[390796450,1760155832623,-150.0,0.00020002,2]
[390796452,1760155832632,-158.38369845,0.00020003,2]
[390796454,1760155832641,-126.83868494,0.00020187,2]
[390796457,1760155832661,-113.92921306,0.00020187,2]
[390796459,1760155832671,-172.5,0.00020587,2]
[390796461,1760155832680,-195.0,0.00021187,2]
[390796463,1760155832690,-22.74641994,0.00021297,2]
[390796677,1760155838565,-196.90569606,0.00021297,2]
[390796678,1760155838574,-217.5,0.00021787,2]
[390796679,1760155838583,-91.34825422,0.00021825,2]
[390796680,1760155838595,-58.65174578,0.00021825,2]
[390796681,1760155838604,-4268.49,0.00021972,2]
[390796682,1760155838614,-223.7,0.00021973,6]
[390796683,1760155838623,-158.99065971,0.00022287,2]
[390796684,1760155838634,-300.0,0.00022385,2]
[390796685,1760155838643,-300.0,0.00022385,2]
[390796686,1760155838652,-172.0,0.00022385,2]
[390796687,1760155838661,-338.0,0.00022386,2]
[390796688,1760155838671,-37090.56352288,0.00022386,2]
[390796689,1760155838680,-240.0,0.00022387,2]
[390796690,1760155838689,-160.0,0.00022453,2]
[390796691,1760155838698,-262.5,0.00022987,2]
[390796692,1760155838707,-368.56881426,0.00023028,7]
[390796693,1760155838717,-261.63316405,0.00023123,2]
[390796694,1760155838727,-162.380719,0.00023123,2]
[390796695,1760155838740,-18603.8837,0.00023123,2]
[390796696,1760155838750,-300.0,0.00023446,20]
[390796697,1760155838759,-300.0,0.00023446,20]
[390796698,1760155838770,-300.0,0.00023446,20]
[390796699,1760155838780,-300.0,0.00023446,20]
[390796700,1760155838789,-300.0,0.00023446,20]
[390796701,1760155838798,-300.0,0.00023446,20]
[390796702,1760155838810,-300.0,0.00023446,20]
[390796703,1760155838820,-300.0,0.00023446,20]
[390796704,1760155838829,-300.0,0.00023446,20]
[390796705,1760155838839,-300.0,0.00023446,20]
[390796706,1760155838848,-300.0,0.00023446,20]
[390796707,1760155838858,-300.0,0.00023446,20]
[390796708,1760155838869,-300.0,0.00023446,20]
[390796709,1760155838879,-300.0,0.00023446,20]
[390796710,1760155838889,-300.0,0.00023446,20]
[390796711,1760155838898,-285.0,0.00023587,2]
[390796712,1760155838907,-150.0,0.00023644,2]
[390796713,1760155838916,-16838.70135551,0.00023671,2]
[390796715,1760155838926,-600.0,0.00023914,20]
[390796716,1760155838936,-307.5,0.00024187,2]
[390796719,1760155838946,-420.0,0.00024315,2]
[390796720,1760155838955,-168.48,0.00024393,6]
[390796722,1760155838965,-330.0,0.00024787,2]
[390796724,1760155838975,-1035.5,0.00025014,120]
[390796726,1760155838985,-150.0,0.00025403,2]
[390796728,1760155838994,-184.28440713,0.00025728,2]
[390796730,1760155839004,-158.99065971,0.00025958,2]
[390796732,1760155839014,-720.0,0.00026305,30]
[390796734,1760155839023,-587.0,0.00026412,2]
[390796736,1760155839032,-240.767898,0.00026676,2]
[390796738,1760155839041,-526.04849136,0.00026803,2]
[390796739,1760155839050,-1266.42498538,0.0002687,2]
[390796740,1760155839060,-152.20671548,0.00026957,2]
[390796741,1760155839069,-151.0,0.00026957,2]
[390796742,1760155839078,-151.0,0.00026957,2]
[390796743,1760155839087,-151.23009497,0.00026957,2]
[390796744,1760155839097,-151.0,0.00026957,2]
[390796745,1760155839106,-5857.81372022,0.00026979,2]
[390796746,1760155839116,-500.0,0.00026988,2]
[390796747,1760155839125,-517.98496135,0.00026988,2]
[390796748,1760155839134,-500.0,0.00026988,2]
[390796749,1760155839144,-500.0,0.00026988,2]
[390796750,1760155839153,-294.33246269,0.00026988,2]
[390796751,1760155839163,-500.0,0.00026988,2]
[390796752,1760155839172,-643.01979841,0.00026988,2]
[390796753,1760155839182,-500.0,0.00026988,2]
[390796754,1760155839191,-500.0,0.00026988,2]
[390796755,1760155839201,-484.33791796,0.00026988,2]
[390796756,1760155839212,-500.0,0.00026988,2]
[390796757,1760155839223,-500.0,0.00026988,2]
[390796758,1760155839233,-500.0,0.00026988,2]
[390796759,1760155839243,-500.0,0.00026988,2]
[390796760,1760155839253,-500.0,0.00026988,2]
[390796761,1760155839263,-500.0,0.00026988,2]
[390796762,1760155839273,-500.0,0.00026988,2]
[390796763,1760155839283,-500.0,0.00026988,2]
[390796764,1760155839293,-500.0,0.00026988,2]
[390796765,1760155839302,-6017.65,0.00026999,2]
[390796766,1760155839312,-18000.0,0.00027,7]
[390796767,1760155839322,-151.53878159,0.00027012,2]
[390796768,1760155839331,-151.0,0.00027012,2]
[390796769,1760155839341,-151.0,0.00027012,2]
[390796770,1760155839350,-152.09357639,0.00027067,2]
[390796771,1760155839360,-151.0,0.00027067,2]
[390796772,1760155839370,-298.08050243,0.00027074,2]
[390796773,1760155839379,-151.0,0.00027121,2]
[390796774,1760155839389,-151.0,0.00027176,2]
[390796775,1760155839398,-261.16678269,0.00027192,2]
[390796776,1760155839408,-150.0,0.00027217,2]
[390796777,1760155839418,-205.80567964,0.00027231,2]
[390796778,1760155839427,-5857.81372022,0.00027287,2]
[390796779,1760155839436,-3448.18245411,0.00027297,2]
[390796780,1760155839446,-150.07,0.000273,120]
[390796781,1760155839456,-11528.2142849,0.00027318,2]
[390796782,1760155839467,-570.81427335,0.00027373,2]
[390796783,1760155839477,-185.10305522,0.00027376,2]
[390796784,1760155839487,-739.67180868,0.00027376,2]
[390796785,1760155839497,-5857.81372022,0.00027377,2]
[390796786,1760155839507,-652.1,0.00027377,3]
[390796787,1760155839517,-326.05,0.00027377,3]
[390796788,1760155839527,-163.03,0.00027377,3]
[390796789,1760155839548,-489.11,0.00027377,3]
[390796790,1760155839559,-99582.8332437,0.00027387,2]
[390796791,1760155839569,-151.317594,0.00027387,10]
[390796792,1760155839580,-161.09,0.00027396,2]
[390796793,1760155839590,-616.52997662,0.00027396,2]
[390796794,1760155839601,-500.0,0.00027396,2]
[390796795,1760155839611,-500.0,0.00027396,2]
[390796796,1760155839621,-370.80058271,0.00027396,2]
[390796797,1760155839631,-500.0,0.00027397,9]
[390796798,1760155839641,-500.0,0.00027397,9]
[390796799,1760155839651,-500.42755785,0.00027397,9]
[390796800,1760155839661,-500.0,0.00027397,9]
[390796801,1760155839672,-500.0,0.00027397,9]
[390796802,1760155839682,-500.0,0.00027397,9]
[390796803,1760155839692,-490.16028397,0.00027397,9]
[390796804,1760155839702,-500.0,0.00027397,9]
[390796805,1760155839717,-500.0,0.00027397,9]
[390796806,1760155839729,-548.7350797,0.00027397,9]
[390796807,1760155839751,-500.0,0.00027397,9]
[390796808,1760155839761,-500.0,0.00027397,9]
[390796809,1760155839771,-500.0,0.00027397,9]
[390796810,1760155839781,-500.0,0.00027397,9]
[390796811,1760155839792,-500.0,0.00027397,9]
[390796812,1760155839802,-500.0,0.00027397,9]
[390796813,1760155839812,-501.29750115,0.00027397,9]
[390796814,1760155839823,-500.0,0.00027397,9]
[390796815,1760155839834,-500.0,0.00027397,9]
[390796816,1760155839844,-500.0,0.00027397,9]
[390796817,1760155839854,-607.62,0.00027397,9]
[390796818,1760155839865,-503.10646988,0.00027397,9]
[390796819,1760155839874,-500.0,0.00027397,9]
[390796820,1760155839884,-500.0,0.00027397,9]
[390796821,1760155839894,-500.0,0.00027397,9]
[390796822,1760155839903,-500.0,0.00027397,9]
[390796823,1760155839913,-500.0,0.00027397,9]
[390796824,1760155839923,-500.0,0.00027397,9]
[390796825,1760155839933,-500.0,0.00027397,9]
[390796826,1760155839943,-500.0,0.00027397,9]
[390796827,1760155839952,-500.0,0.00027397,9]
[390796828,1760155839963,-500.0,0.00027397,9]
[390796829,1760155839973,-500.0,0.00027397,9]
[390796830,1760155839983,-500.0,0.00027397,9]
[390796831,1760155839992,-382.28383136,0.00027397,9]
[390796832,1760155840004,-500.0,0.00027397,9]
[390796833,1760155840013,-430.62689032,0.00027397,9]
[390796834,1760155840023,-500.0,0.00027397,9]
[390796835,1760155840033,-500.0,0.00027397,9]
[390796836,1760155840043,-500.0,0.00027397,9]
[390796837,1760155840052,-500.0,0.00027397,9]
[390796838,1760155840062,-384.49161748,0.00027397,9]
[390796839,1760155840071,-500.0,0.00027397,9]
[390796840,1760155840081,-353.66145379,0.00027397,9]
[390796881,1760155843637,-1303.51850616,0.00027387,10]
[390796883,1760155843649,-718.14802654,0.00027387,10]
[390796897,1760156207991,610.44374844,0.00025,120]
[390796904,1760156911353,9475.985751,0.00015,2]
[390796905,1760156911373,10000.01,0.00015,2]
[390796906,1760156911395,10000.01,0.00015,2]
[390796907,1760156911415,8975.40717843,0.00015,2]
[390796979,1760157034999,-150.0,0.00019975,2]
[390796980,1760157035008,-154.71466312,0.0002,21]
[390796982,1760157035020,-95.33676932,0.0002,21]
[390796983,1760157035029,-1885.21613216,0.0002,20]
[390796984,1760157035038,-300.0,0.00021499,2]
[390796985,1760157035049,-22.64442927,0.000215,2]
[390796987,1760157035060,-1494.39845533,0.000215,2]
[390796990,1760157035071,-2398.01374395,0.000215,2]
[390796998,1760157037799,-4757.527112,0.000215,2]
[390796999,1760157037809,-300.0,0.00021929,20]
[390797000,1760157037818,-300.0,0.00021929,20]
[390797001,1760157037828,-300.0,0.00021929,20]
[390797002,1760157037837,-300.0,0.00021929,20]
[390797003,1760157037847,-300.0,0.00021929,20]
[390797004,1760157037856,-300.0,0.00021929,20]
[390797005,1760157037866,-300.0,0.00021929,20]
[390797006,1760157037875,-300.0,0.00021929,20]
[390797007,1760157037884,-300.0,0.00021929,20]
[390797008,1760157037894,-300.0,0.00021929,20]
[390797009,1760157037904,-300.0,0.00021929,20]
[390797010,1760157037919,-300.0,0.00021929,20]
[390797011,1760157037928,-300.0,0.00021929,20]
[390797012,1760157037937,-300.0,0.00021929,20]
[390797013,1760157037947,-300.0,0.00021929,20]
[390797014,1760157037956,-6271.19640687,0.00021929,2]
[390797015,1760157037966,-600.0,0.00022367,20]
[390797016,1760157037975,-420.0,0.00023374,2]
[390797017,1760157037984,-720.0,0.00024603,20]
[390797018,1760157037994,-189.0,0.00025053,120]
[390797019,1760157038003,-1000.0,0.00025852,30]
[390797020,1760157038013,-189.0,0.00026305,120]
[390797021,1760157038022,-323.23499712,0.00026575,2]
[390797022,1760157038032,-158.99065971,0.000269,2]
[390797023,1760157038042,-13405.9,0.00027,10]
[390797024,1760157038054,-391.9198272,0.00027,2]
[390797025,1760157038066,-391.9198272,0.00027,2]
[390797026,1760157038075,-391.9198272,0.00027,2]
[390797027,1760157038085,-391.9198272,0.00027,2]
[390797028,1760157038095,-391.9198272,0.00027,2]
[390797029,1760157038105,-391.9198272,0.00027,2]
[390797030,1760157038116,-391.9198272,0.00027,2]
[390797031,1760157038127,-391.9198272,0.00027,2]
[390797032,1760157038136,-391.9198272,0.00027,2]
[390797033,1760157038145,-391.9198272,0.00027,2]
[390797034,1760157038155,-754.5255628,0.00027,2]
[390797035,1760157038164,-864.0,0.00027064,30]
[390797036,1760157038173,-1000.0,0.00027123,10]
[390797037,1760157038183,-1000.0,0.00027123,10]
[390797038,1760157038192,-1000.0,0.00027123,10]
[390797039,1760157038203,-999.67324044,0.00027123,10]
[390797040,1760157038213,-314.30512083,0.00027221,2]
[390797041,1760157038222,-164.8384603,0.00027233,2]
[390797042,1760157038232,-297.8851395,0.00027233,2]
[390797043,1760157038242,-591.6713613,0.00027233,2]
[390797044,1760157038251,-162.8757457,0.00027233,2]
[390797045,1760157038261,-297.8851395,0.00027233,2]
[390797046,1760157038270,-588.4106815,0.00027233,2]
[390797047,1760157038279,-297.8851395,0.00027233,2]
[390797048,1760157038288,-162.8757457,0.00027233,2]
[390797049,1760157038298,-588.4106815,0.00027233,2]
[390797050,1760157038307,-162.8757457,0.00027233,2]
[390797051,1760157038317,-297.8851395,0.00027233,2]
[390797052,1760157038326,-588.4106815,0.00027233,2]
[390797053,1760157038336,-297.8851395,0.00027233,2]
[390797054,1760157038345,-588.4106815,0.00027233,2]
[390797055,1760157038355,-297.8851395,0.00027233,2]
[390797056,1760157038364,-588.4106815,0.00027233,2]
[390797057,1760157038373,-297.8851395,0.00027233,2]
[390797058,1760157038383,-588.4106815,0.00027233,2]
[390797059,1760157038393,-297.8851395,0.00027233,2]
[390797060,1760157038402,-588.4106815,0.00027233,2]
[390797061,1760157038411,-297.8851395,0.00027233,2]
[390797062,1760157038421,-588.4106815,0.00027233,2]
[390797063,1760157038430,-297.8851395,0.00027233,2]
[390797064,1760157038440,-588.4106815,0.00027233,2]
[390797065,1760157038449,-297.1504012,0.00027233,2]
[390797066,1760157038458,-588.4106815,0.00027233,2]
[390797067,1760157038468,-588.4106815,0.00027233,2]
[390797068,1760157038477,-588.4106815,0.00027233,2]
[390797069,1760157038486,-588.4106815,0.00027233,2]
[390797070,1760157038495,-161.09,0.00027233,2]
[390797071,1760157038504,-312.16666667,0.00027327,2]
[390797072,1760157038513,-8892.95,0.00027377,10]
[390797073,1760157038523,-1950.99994001,0.00027377,2]
[390797074,1760157038532,-366.0369403,0.00027386,2]
[390797075,1760157038541,-460.33553316,0.00027386,2]
[390797076,1760157038552,-5766.91,0.00027386,2]
[390797077,1760157038561,-37068.9988602,0.00027387,2]
[390797078,1760157038571,-2000.0,0.00027387,120]
[390797079,1760157038580,-2000.0,0.00027387,120]
[390797080,1760157038589,-2000.0,0.00027387,120]
[390797081,1760157038599,-2000.0,0.00027387,120]
[390797082,1760157038608,-2000.0,0.00027387,120]
[390797083,1760157038617,-2000.0,0.00027387,120]
[390797084,1760157038627,-2000.0,0.00027387,120]
[390797085,1760157038636,-2000.0,0.00027387,120]
[390797086,1760157038645,-2000.0,0.00027387,120]
[390797087,1760157038654,-2000.0,0.00027387,120]